[Event "*** Titled Tuesday Blitz"]
[Site "Chess.com"]
[Date "2019.05.07"]
[Round "1"]
[White "VFernandezB"]
[Black "DenishevM"]
[Result "1-0"]
[WhiteElo "2342"]
[BlackElo "2610"]
[TimeControl "180+2"]
[EndTime "13:07:55 PDT"]
[Termination "VFernandezB won by resignation"]

1. d4 {[%clk 0:03:00.7]} 1... Nf6 {[%clk 0:03:00.7]} 2. c4 {[%clk 0:03:01.1]}
2... c5 {[%clk 0:03:01.9]} 3. Nf3 {[%clk 0:03:01.3]} 3... cxd4 {[%clk
0:03:02.3]} 4. Nxd4 {[%clk 0:03:03.2]} 4... Nc6 {[%clk 0:03:03.3]} 5. Nc3 {[%clk
0:03:04.2]} 5... g6 {[%clk 0:03:03.9]} 6. e4 {[%clk 0:03:05.2]} 6... d6 {[%clk
0:03:04.4]} 7. Be2 {[%clk 0:03:05.4]} 7... Nxd4 {[%clk 0:02:56.7]} 8. Qxd4
{[%clk 0:03:05.3]} 8... Bg7 {[%clk 0:02:58.6]} 9. Qd2 {[%clk 0:03:04.1]} 9...
O-O {[%clk 0:02:58.7]} 10. O-O {[%clk 0:03:03.6]} 10... Be6 {[%clk 0:02:55.5]}
11. Rb1 {[%clk 0:03:03.6]} 11... Rc8 {[%clk 0:02:52.6]} 12. b3 {[%clk
0:02:42.8]} 12... b5 {[%clk 0:02:19.2]} 13. Nxb5 {[%clk 0:02:33.3]} 13... Nxe4
{[%clk 0:02:18.7]} 14. Qe3 {[%clk 0:02:32.3]} 14... a6 {[%clk 0:02:09.5]} 15.
Nd4 {[%clk 0:02:24.4]} 15... Qb6 {[%clk 0:01:31.7]} 16. Nxe6 {[%clk 0:02:11.8]}
16... Qxe3 {[%clk 0:01:33.6]} 17. Bxe3 {[%clk 0:02:13.2]} 17... fxe6 {[%clk
0:01:34.3]} 18. Bg4 {[%clk 0:02:04.1]} 18... Kf7 {[%clk 0:01:28.2]} 19. Rbe1
{[%clk 0:01:55.2]} 19... h5 {[%clk 0:01:21.2]} 20. Bh3 {[%clk 0:01:55.4]} 20...
Ra8 {[%clk 0:00:18.5]} 21. Bb6 {[%clk 0:01:29.6]} 21... d5 {[%clk 0:00:09]} 22.
Bxe6+ {[%clk 0:01:26.3]} 22... Kxe6 {[%clk 0:00:09.2]} 23. f3 {[%clk 0:01:28.2]}
23... Ke5 {[%clk 0:00:05.4]} 24. Bc7+ {[%clk 0:01:21.5]} 24... Kd4 {[%clk
0:00:04.4]} 25. Rd1+ {[%clk 0:01:16.6]} 25... Kc3 {[%clk 0:00:03.9]} 26. fxe4
{[%clk 0:01:14]} 26... Rxf1+ {[%clk 0:00:05.8]} 27. Kxf1 {[%clk 0:01:08.3]}
27... d4 {[%clk 0:00:07.4]} 28. Ke2 {[%clk 0:01:07.6]} 28... e5 {[%clk
0:00:07.2]} 29. Rd2 {[%clk 0:01:05.9]} 29... a5 {[%clk 0:00:08.4]} 30. Bd6
{[%clk 0:00:57.3]} 30... Bh6 {[%clk 0:00:08.5]} 31. Rd3+ {[%clk 0:00:56.7]}
31... Kc2 {[%clk 0:00:08.4]} 32. Bxe5 {[%clk 0:00:58.1]} 32... a4 {[%clk
0:00:08.2]} 33. Bxd4 {[%clk 0:00:57.3]} 33... axb3 {[%clk 0:00:08.6]} 34. axb3
{[%clk 0:00:58.5]} 34... Re8 {[%clk 0:00:09]} 35. e5 {[%clk 0:00:58.2]} 35...
Bg7 {[%clk 0:00:06.8]} 36. Re3 {[%clk 0:00:58.7]} 36... Re6 {[%clk 0:00:08.2]}
37. c5 {[%clk 0:00:58]} 1-0

[Event "*** Titled Tuesday Blitz"]
[Site "Chess.com"]
[Date "2019.05.07"]
[Round "1"]
[White "Bigfish1995"]
[Black "Berardino"]
[Result "1/2-1/2"]
[WhiteElo "2939"]
[BlackElo "2502"]
[TimeControl "180+2"]
[EndTime "13:07:58 PDT"]
[Termination "Game drawn by repetition"]

1. Nf3 {[%clk 0:02:53.4]} 1... c5 {[%clk 0:03:00.6]} 2. c4 {[%clk 0:02:53.7]}
2... Nf6 {[%clk 0:03:00.1]} 3. b3 {[%clk 0:02:54.8]} 3... g6 {[%clk 0:03:00.3]}
4. Bb2 {[%clk 0:02:55.8]} 4... Bg7 {[%clk 0:03:02.2]} 5. g3 {[%clk 0:02:56.3]}
5... O-O {[%clk 0:03:03.1]} 6. Bg2 {[%clk 0:02:57.1]} 6... d6 {[%clk 0:02:59.7]}
7. d4 {[%clk 0:02:52.3]} 7... Ne4 {[%clk 0:02:55.8]} 8. O-O {[%clk 0:02:52.3]}
8... Nc6 {[%clk 0:02:56.5]} 9. e3 {[%clk 0:02:34]} 9... Bg4 {[%clk 0:02:18.5]}
10. h3 {[%clk 0:02:32.4]} 10... Bxf3 {[%clk 0:02:19.1]} 11. Bxf3 {[%clk
0:02:27.2]} 11... f5 {[%clk 0:02:16.5]} 12. Na3 {[%clk 0:02:12.2]} 12... d5
{[%clk 0:02:02.9]} 13. Nc2 {[%clk 0:01:48.3]} 13... Qd7 {[%clk 0:01:52.7]} 14.
cxd5 {[%clk 0:01:29.3]} 14... Qxd5 {[%clk 0:01:52.9]} 15. Rb1 {[%clk 0:01:30.3]}
15... Rad8 {[%clk 0:01:47.8]} 16. Be2 {[%clk 0:01:07.3]} 16... Kh8 {[%clk
0:01:24.1]} 17. Bc4 {[%clk 0:01:06.4]} 17... Qd6 {[%clk 0:01:23.5]} 18. dxc5
{[%clk 0:01:00.4]} 18... Qxc5 {[%clk 0:01:19.6]} 19. Bxg7+ {[%clk 0:01:00.8]}
19... Kxg7 {[%clk 0:01:20.4]} 20. Qc1 {[%clk 0:00:53.3]} 20... Nd2 {[%clk
0:01:19.4]} 21. Qb2+ {[%clk 0:00:45.9]} 21... Qe5 {[%clk 0:01:15.7]} 22. Qxe5+
{[%clk 0:00:41.8]} 22... Nxe5 {[%clk 0:01:16.7]} 23. Nd4 {[%clk 0:00:43.3]}
23... Kf6 {[%clk 0:00:55.7]} 24. Ne6 {[%clk 0:00:32.4]} 24... Nexc4 {[%clk
0:00:48.3]} 25. Nxf8 {[%clk 0:00:27.7]} 25... Nxb1 {[%clk 0:00:27.5]} 26. Nxh7+
{[%clk 0:00:21.5]} 26... Kg7 {[%clk 0:00:22.3]} 27. Ng5 {[%clk 0:00:22.3]} 27...
Kf6 {[%clk 0:00:17.7]} 28. Rxb1 {[%clk 0:00:20]} 28... Nd2 {[%clk 0:00:18.7]}
29. Nh7+ {[%clk 0:00:17.9]} 29... Kg7 {[%clk 0:00:19.6]} 30. Ng5 {[%clk
0:00:13.6]} 30... Kf6 {[%clk 0:00:20.2]} 31. Nh7+ {[%clk 0:00:14.7]} 31... Kg7
{[%clk 0:00:21.4]} 32. Ng5 {[%clk 0:00:15.4]} 32... Kf6 {[%clk 0:00:22.6]} 33.
Nh7+ {[%clk 0:00:16.6]} 1/2-1/2

[Event "*** Titled Tuesday Blitz"]
[Site "Chess.com"]
[Date "2019.05.07"]
[Round "1"]
[White "LarissaSteenbekkers"]
[Black "Heineccius"]
[Result "0-1"]
[WhiteElo "1975"]
[BlackElo "2510"]
[TimeControl "180+2"]
[EndTime "13:08:08 PDT"]
[Termination "Heineccius won by checkmate"]

1. e4 {[%clk 0:03:00.8]} 1... c5 {[%clk 0:03:00]} 2. Nf3 {[%clk 0:02:55.5]} 2...
e6 {[%clk 0:03:00.4]} 3. d4 {[%clk 0:02:55]} 3... cxd4 {[%clk 0:03:01.2]} 4.
Nxd4 {[%clk 0:02:56.3]} 4... a6 {[%clk 0:03:01.9]} 5. Nc3 {[%clk 0:02:55.7]}
5... Qc7 {[%clk 0:03:01.7]} 6. g3 {[%clk 0:02:54.2]} 6... Bb4 {[%clk 0:03:00.2]}
7. Bd2 {[%clk 0:02:48.4]} 7... Nf6 {[%clk 0:02:57.2]} 8. Bg2 {[%clk 0:02:46.5]}
8... Nc6 {[%clk 0:02:57.1]} 9. Nb3 {[%clk 0:02:35.4]} 9... Be7 {[%clk
0:02:51.3]} 10. O-O {[%clk 0:02:31.2]} 10... d6 {[%clk 0:02:45.3]} 11. Re1
{[%clk 0:02:25.8]} 11... b5 {[%clk 0:02:35.6]} 12. Nd5 {[%clk 0:02:19.5]} 12...
exd5 {[%clk 0:02:34.1]} 13. exd5 {[%clk 0:02:19.7]} 13... Ne5 {[%clk 0:02:34.3]}
14. f4 {[%clk 0:02:17.9]} 14... Nc4 {[%clk 0:02:21.4]} 15. Bc3 {[%clk
0:02:13.5]} 15... O-O {[%clk 0:02:19.3]} 16. Nd4 {[%clk 0:02:13.1]} 16... Ng4
{[%clk 0:02:02.4]} 17. Nc6 {[%clk 0:02:04.5]} 17... Bf6 {[%clk 0:01:58.9]} 18.
h3 {[%clk 0:01:52.6]} 18... Qb6+ {[%clk 0:01:52]} 19. Bd4 {[%clk 0:01:45.2]}
19... Bxd4+ {[%clk 0:01:43.4]} 20. Nxd4 {[%clk 0:01:43.7]} 20... Nge3 {[%clk
0:01:40.7]} 21. Qd3 {[%clk 0:01:42.3]} 21... Nxc2 {[%clk 0:01:27.7]} 22. Qxc2
{[%clk 0:01:36.3]} 22... Qxd4+ {[%clk 0:01:28.3]} 23. Kh2 {[%clk 0:01:37.6]}
23... Ne3 {[%clk 0:00:51.6]} 24. Qe2 {[%clk 0:01:24.2]} 24... Nxg2 {[%clk
0:00:50.9]} 25. Qxg2 {[%clk 0:01:24.5]} 25... Bb7 {[%clk 0:00:39.1]} 26. Rad1
{[%clk 0:01:23.1]} 26... Qf6 {[%clk 0:00:39.2]} 27. Qf3 {[%clk 0:01:17]} 27...
Rac8 {[%clk 0:00:40.1]} 28. g4 {[%clk 0:01:15]} 28... Rc4 {[%clk 0:00:39.8]} 29.
f5 {[%clk 0:01:12]} 29... h6 {[%clk 0:00:37.7]} 30. Re2 {[%clk 0:01:09.4]} 30...
Rfc8 {[%clk 0:00:36.9]} 31. Rdd2 {[%clk 0:01:05.7]} 31... Rd4 {[%clk 0:00:35.1]}
32. Rxd4 {[%clk 0:00:41.7]} 32... Qxd4 {[%clk 0:00:35]} 33. Re7 {[%clk
0:00:38.5]} 33... Rc2+ {[%clk 0:00:28.8]} 34. Kg3 {[%clk 0:00:36.5]} 34... Bxd5
{[%clk 0:00:26.7]} 35. Re8+ {[%clk 0:00:21.2]} 35... Kh7 {[%clk 0:00:26.9]} 36.
Qf1 {[%clk 0:00:21.5]} 36... Rg2+ {[%clk 0:00:24.7]} 37. Kh4 {[%clk 0:00:20.9]}
37... Qf6+ {[%clk 0:00:25.1]} 38. Kh5 {[%clk 0:00:21.6]} 38... Qg5# {[%clk
0:00:26.4]} 0-1

[Event "*** Titled Tuesday Blitz"]
[Site "Chess.com"]
[Date "2019.05.07"]
[Round "1"]
[White "saraswathii"]
[Black "Lagmantr"]
[Result "0-1"]
[WhiteElo "2245"]
[BlackElo "2571"]
[TimeControl "180+2"]
[EndTime "13:08:18 PDT"]
[Termination "Lagmantr won by resignation"]

1. e3 {[%clk 0:02:32]} 1... e5 {[%clk 0:02:58.6]} 2. g3 {[%clk 0:02:28.3]} 2...
d5 {[%clk 0:02:58.4]} 3. Bg2 {[%clk 0:02:29.6]} 3... Nf6 {[%clk 0:02:59.8]} 4.
Ne2 {[%clk 0:02:31]} 4... Nc6 {[%clk 0:03:00.7]} 5. d4 {[%clk 0:02:32.5]} 5...
Be7 {[%clk 0:03:00.1]} 6. dxe5 {[%clk 0:02:32.8]} 6... Nxe5 {[%clk 0:03:02]} 7.
O-O {[%clk 0:02:33.9]} 7... O-O {[%clk 0:03:00.8]} 8. b3 {[%clk 0:02:34.6]} 8...
Ne4 {[%clk 0:02:58.4]} 9. Bb2 {[%clk 0:02:34.9]} 9... Bf6 {[%clk 0:02:59.1]} 10.
c4 {[%clk 0:02:33.5]} 10... Nf3+ {[%clk 0:02:56.1]} 11. Bxf3 {[%clk 0:02:33.9]}
11... Bxb2 {[%clk 0:02:57.5]} 12. cxd5 {[%clk 0:02:34.7]} 12... Ng5 {[%clk
0:02:58]} 13. Nd2 {[%clk 0:02:31.4]} 13... Bxa1 {[%clk 0:02:57.8]} 14. Qxa1
{[%clk 0:02:31.7]} 14... Nxf3+ {[%clk 0:02:57.8]} 15. Nxf3 {[%clk 0:02:33.6]}
15... Qxd5 {[%clk 0:02:59]} 16. Kg2 {[%clk 0:02:26.6]} 16... Bh3+ {[%clk
0:02:42.7]} 17. Kxh3 {[%clk 0:02:26.9]} 17... Qxf3 {[%clk 0:02:43.5]} 18. Nd4
{[%clk 0:02:27.7]} 18... Qe4 {[%clk 0:02:41.1]} 19. Qc3 {[%clk 0:02:27.7]} 19...
Rad8 {[%clk 0:02:35.9]} 20. Qxc7 {[%clk 0:02:25.5]} 20... Rd5 {[%clk 0:02:34]}
21. g4 {[%clk 0:02:25]} 21... h5 {[%clk 0:02:32.4]} 22. Rg1 {[%clk 0:02:17]}
22... hxg4+ {[%clk 0:01:50.4]} 23. Rxg4 {[%clk 0:02:18.9]} 23... Rh5+ {[%clk
0:01:51.6]} 24. Kg3 {[%clk 0:02:18.2]} 24... Qh1 {[%clk 0:01:52.7]} 25. Nf3
{[%clk 0:02:16]} 25... Rf5 {[%clk 0:01:35.4]} 26. Qxb7 {[%clk 0:02:15.8]} 26...
Re8 {[%clk 0:01:28.5]} 27. Rf4 {[%clk 0:02:00.3]} 27... Rxf4 {[%clk 0:01:20.7]}
28. exf4 {[%clk 0:01:58.8]} 28... Qb1 {[%clk 0:01:16.1]} 29. Qxa7 {[%clk
0:01:47.1]} 29... Qg6+ {[%clk 0:01:17]} 30. Kh3 {[%clk 0:01:47.4]} 30... f6
{[%clk 0:01:06.1]} 31. Qa5 {[%clk 0:01:41.4]} 31... f5 {[%clk 0:00:56.9]} 32.
Qd5+ {[%clk 0:01:35.2]} 32... Kh8 {[%clk 0:00:55.8]} 33. Ng5 {[%clk 0:01:31.7]}
33... Qh5+ {[%clk 0:00:55.6]} 34. Kg2 {[%clk 0:01:32.1]} 34... Qg4+ {[%clk
0:00:55.7]} 35. Kf1 {[%clk 0:01:29.9]} 35... Qxf4 {[%clk 0:00:56.2]} 36. Ne6
{[%clk 0:01:01.7]} 36... Qxh2 {[%clk 0:00:56.2]} 37. Ng5 {[%clk 0:00:33.4]}
37... Qh5 {[%clk 0:00:50]} 38. Nf7+ {[%clk 0:00:30.7]} 38... Kh7 {[%clk
0:00:50.7]} 39. Nd6 {[%clk 0:00:27]} 39... Qh3+ {[%clk 0:00:49.4]} 0-1

[Event "*** Titled Tuesday Blitz"]
[Site "Chess.com"]
[Date "2019.05.07"]
[Round "1"]
[White "Kimster98"]
[Black "Koksal06"]
[Result "0-1"]
[WhiteElo "2647"]
[BlackElo "2410"]
[TimeControl "180+2"]
[EndTime "13:08:33 PDT"]
[Termination "Koksal06 won by resignation"]

1. Nf3 {[%clk 0:03:01.9]} 1... e6 {[%clk 0:03:01.9]} 2. c4 {[%clk 0:03:02.4]}
2... d5 {[%clk 0:03:03.8]} 3. g3 {[%clk 0:03:03.5]} 3... Nf6 {[%clk 0:03:05.7]}
4. Bg2 {[%clk 0:03:04.2]} 4... dxc4 {[%clk 0:03:06.4]} 5. Qa4+ {[%clk
0:03:05.1]} 5... Bd7 {[%clk 0:03:07.5]} 6. Qxc4 {[%clk 0:03:06.3]} 6... Bc6
{[%clk 0:03:09.2]} 7. O-O {[%clk 0:03:05.9]} 7... Nbd7 {[%clk 0:03:10.8]} 8. d3
{[%clk 0:03:06.2]} 8... Be7 {[%clk 0:03:12.4]} 9. a3 {[%clk 0:03:02.7]} 9... O-O
{[%clk 0:03:13]} 10. b4 {[%clk 0:03:03.6]} 10... Bxf3 {[%clk 0:03:07.2]} 11.
Bxf3 {[%clk 0:03:01.1]} 11... Ne5 {[%clk 0:03:08.4]} 12. Qf4 {[%clk 0:02:58]}
12... Nxf3+ {[%clk 0:02:53]} 13. Qxf3 {[%clk 0:02:59.9]} 13... Qd5 {[%clk
0:02:53.9]} 14. Qxd5 {[%clk 0:03:00]} 14... exd5 {[%clk 0:02:55.8]} 15. Nc3
{[%clk 0:02:57.5]} 15... c6 {[%clk 0:02:55.1]} 16. e4 {[%clk 0:02:52.1]} 16...
a5 {[%clk 0:02:30.1]} 17. bxa5 {[%clk 0:02:38.7]} 17... Rxa5 {[%clk 0:02:28.7]}
18. a4 {[%clk 0:02:31]} 18... Rfa8 {[%clk 0:02:23.6]} 19. Rb1 {[%clk 0:02:31.2]}
19... R8a7 {[%clk 0:02:17.7]} 20. Be3 {[%clk 0:02:30.3]} 20... Bc5 {[%clk
0:02:19]} 21. d4 {[%clk 0:02:18.7]} 21... Be7 {[%clk 0:02:19.7]} 22. e5 {[%clk
0:01:56.9]} 22... Nd7 {[%clk 0:02:11.4]} 23. Bd2 {[%clk 0:01:56.4]} 23... R5a6
{[%clk 0:01:58.4]} 24. Rb2 {[%clk 0:01:51.9]} 24... Nb6 {[%clk 0:01:55.3]} 25.
Rfb1 {[%clk 0:01:51.2]} 25... Nc4 {[%clk 0:01:56.6]} 26. Ra2 {[%clk 0:01:45.3]}
26... b5 {[%clk 0:01:33.6]} 27. Be1 {[%clk 0:01:28.9]} 27... b4 {[%clk 0:01:29]}
28. Ne2 {[%clk 0:01:29.3]} 28... Rxa4 {[%clk 0:01:30.2]} 29. Rxa4 {[%clk
0:01:30.8]} 29... Rxa4 {[%clk 0:01:30.9]} 30. Nc1 {[%clk 0:01:32.3]} 30... Na3
{[%clk 0:01:03.9]} 31. Rb2 {[%clk 0:01:26.6]} 31... Nb5 {[%clk 0:00:58.9]} 32.
Nb3 {[%clk 0:00:55.5]} 32... g6 {[%clk 0:00:59.9]} 33. Kf1 {[%clk 0:00:50.7]}
33... Kg7 {[%clk 0:01:01.4]} 34. Ke2 {[%clk 0:00:51.6]} 34... Nc3+ {[%clk
0:00:59.9]} 35. Kd3 {[%clk 0:00:50.9]} 35... Nb5 {[%clk 0:00:54.8]} 36. Nc1
{[%clk 0:00:38.4]} 36... g5 {[%clk 0:00:54.5]} 37. f4 {[%clk 0:00:38.8]} 37...
Kg6 {[%clk 0:00:55.2]} 38. Ke3 {[%clk 0:00:36.4]} 38... gxf4+ {[%clk 0:00:56.3]}
39. gxf4 {[%clk 0:00:37.4]} 39... Ra3+ {[%clk 0:00:57.3]} 40. Rb3 {[%clk
0:00:38]} 40... Kf5 {[%clk 0:00:55.5]} 41. Kd3 {[%clk 0:00:24.5]} 41... Kxf4
{[%clk 0:00:53.5]} 42. Ne2+ {[%clk 0:00:25.7]} 42... Kf5 {[%clk 0:00:52.2]} 43.
Kc2 {[%clk 0:00:26.1]} 43... Rxb3 {[%clk 0:00:51.8]} 44. Kxb3 {[%clk 0:00:28]}
44... Ke4 {[%clk 0:00:53.3]} 45. Ng3+ {[%clk 0:00:29.3]} 45... Kd3 {[%clk
0:00:54.2]} 46. Bf2 {[%clk 0:00:30.5]} 46... Nxd4+ {[%clk 0:00:55.1]} 47. Bxd4
{[%clk 0:00:31.6]} 47... Kxd4 {[%clk 0:00:57]} 48. Nf5+ {[%clk 0:00:33.4]} 48...
Kxe5 {[%clk 0:00:57.8]} 49. Nxe7 {[%clk 0:00:35]} 49... c5 {[%clk 0:00:57.3]}
50. Ka4 {[%clk 0:00:27.1]} 50... f5 {[%clk 0:00:57]} 51. Nc6+ {[%clk 0:00:24.9]}
51... Ke4 {[%clk 0:00:57.4]} 0-1

[Event "*** Titled Tuesday Blitz"]
[Site "Chess.com"]
[Date "2019.05.07"]
[Round "1"]
[White "GMKrikor"]
[Black "TargetA"]
[Result "1-0"]
[WhiteElo "2781"]
[BlackElo "2428"]
[TimeControl "180+2"]
[EndTime "13:08:37 PDT"]
[Termination "GMKrikor won by resignation"]

1. e4 {[%clk 0:02:58.8]} 1... e5 {[%clk 0:03:00.1]} 2. Bc4 {[%clk 0:02:58.5]}
2... Nf6 {[%clk 0:03:00]} 3. d3 {[%clk 0:02:59.9]} 3... c6 {[%clk 0:03:00.6]} 4.
Nf3 {[%clk 0:03:00.7]} 4... d5 {[%clk 0:03:01.5]} 5. Bb3 {[%clk 0:03:02.2]} 5...
dxe4 {[%clk 0:02:48.1]} 6. Ng5 {[%clk 0:02:54.5]} 6... Be6 {[%clk 0:02:40.8]} 7.
Nxe6 {[%clk 0:02:14.6]} 7... fxe6 {[%clk 0:02:42.7]} 8. Bxe6 {[%clk 0:02:12.2]}
8... exd3 {[%clk 0:02:39.3]} 9. O-O {[%clk 0:02:12.1]} 9... Qe7 {[%clk
0:02:18.9]} 10. Bh3 {[%clk 0:01:49.7]} 10... dxc2 {[%clk 0:02:16.3]} 11. Qxc2
{[%clk 0:01:50.3]} 11... Nbd7 {[%clk 0:02:17.6]} 12. Nc3 {[%clk 0:01:48.4]}
12... O-O-O {[%clk 0:02:12.5]} 13. Be3 {[%clk 0:01:06.2]} 13... Kb8 {[%clk
0:02:05.5]} 14. Rfd1 {[%clk 0:00:56.9]} 14... Nb6 {[%clk 0:01:52.7]} 15. Rxd8+
{[%clk 0:00:20.6]} 15... Qxd8 {[%clk 0:01:54.6]} 16. Rd1 {[%clk 0:00:22.5]}
16... Qc7 {[%clk 0:01:41.6]} 17. Qf5 {[%clk 0:00:20.6]} 17... Bb4 {[%clk
0:01:36.7]} 18. Bg5 {[%clk 0:00:18.1]} 18... Rf8 {[%clk 0:01:10.5]} 19. g3
{[%clk 0:00:16.9]} 19... Nfd5 {[%clk 0:01:00.7]} 20. Qxh7 {[%clk 0:00:15]} 20...
Bxc3 {[%clk 0:00:51.1]} 21. bxc3 {[%clk 0:00:16.9]} 21... Nxc3 {[%clk
0:00:52.7]} 22. Re1 {[%clk 0:00:14.5]} 22... Nbd5 {[%clk 0:00:47.2]} 23. Bg2
{[%clk 0:00:09.3]} 23... Qf7 {[%clk 0:00:42.7]} 24. Rf1 {[%clk 0:00:06.3]} 24...
e4 {[%clk 0:00:38.2]} 25. h4 {[%clk 0:00:05]} 25... Re8 {[%clk 0:00:34.2]} 26.
Bd2 {[%clk 0:00:04.6]} 26... Ne2+ {[%clk 0:00:18.3]} 27. Kh2 {[%clk 0:00:05.8]}
27... Nd4 {[%clk 0:00:19.9]} 28. Kh1 {[%clk 0:00:04.8]} 28... Nf3 {[%clk
0:00:20.6]} 29. Bc1 {[%clk 0:00:06.4]} 29... Rf8 {[%clk 0:00:17.1]} 30. h5
{[%clk 0:00:07.5]} 30... Qe6 {[%clk 0:00:14.6]} 31. Qg6 {[%clk 0:00:06.7]} 31...
Rf6 {[%clk 0:00:15.1]} 32. Qxg7 {[%clk 0:00:06]} 32... Qf5 {[%clk 0:00:15.2]}
33. g4 {[%clk 0:00:06.6]} 33... Qe5 {[%clk 0:00:15.1]} 34. Bxf3 {[%clk
0:00:05.8]} 34... exf3 {[%clk 0:00:16.3]} 35. g5 {[%clk 0:00:04.6]} 35... Qf5
{[%clk 0:00:16.1]} 36. gxf6 {[%clk 0:00:04.7]} 36... Qh3+ {[%clk 0:00:16.7]} 37.
Kg1 {[%clk 0:00:06.1]} 37... Nc3 {[%clk 0:00:18.1]} 38. Qg3+ {[%clk 0:00:07]}
38... Qxg3+ {[%clk 0:00:17]} 39. fxg3 {[%clk 0:00:08.9]} 1-0

[Event "*** Titled Tuesday Blitz"]
[Site "Chess.com"]
[Date "2019.05.07"]
[Round "1"]
[White "rubhani"]
[Black "PawnEatingZombie"]
[Result "1-0"]
[WhiteElo "2530"]
[BlackElo "2132"]
[TimeControl "180+2"]
[EndTime "13:08:46 PDT"]
[Termination "rubhani won by resignation"]

1. Nf3 {[%clk 0:02:31.1]} 1... d5 {[%clk 0:02:59.1]} 2. g3 {[%clk 0:02:31.2]}
2... e6 {[%clk 0:02:58.9]} 3. Bg2 {[%clk 0:02:32.4]} 3... Nf6 {[%clk 0:02:58.8]}
4. O-O {[%clk 0:02:34.3]} 4... b5 {[%clk 0:02:58.4]} 5. a4 {[%clk 0:02:33.2]}
5... b4 {[%clk 0:02:58.6]} 6. c3 {[%clk 0:02:33]} 6... a5 {[%clk 0:02:55.2]} 7.
c4 {[%clk 0:02:31.1]} 7... c6 {[%clk 0:02:54.3]} 8. d4 {[%clk 0:02:31.3]} 8...
dxc4 {[%clk 0:02:49.2]} 9. Ne5 {[%clk 0:02:31.3]} 9... Bb7 {[%clk 0:02:15.4]}
10. Nxc4 {[%clk 0:02:23.6]} 10... Be7 {[%clk 0:02:13.8]} 11. b3 {[%clk
0:02:11.1]} 11... O-O {[%clk 0:02:13.6]} 12. Bb2 {[%clk 0:02:11.7]} 12... Qc7
{[%clk 0:02:03]} 13. Nbd2 {[%clk 0:01:50.1]} 13... Nbd7 {[%clk 0:02:01.5]} 14.
Rc1 {[%clk 0:01:45.6]} 14... c5 {[%clk 0:02:02.9]} 15. Nf3 {[%clk 0:01:40.5]}
15... Rfd8 {[%clk 0:01:47.1]} 16. Qc2 {[%clk 0:01:08.8]} 16... Be4 {[%clk
0:01:41.2]} 17. Qd2 {[%clk 0:01:09.5]} 17... Qb7 {[%clk 0:01:36.3]} 18. Qe3
{[%clk 0:01:07.3]} 18... h6 {[%clk 0:01:25]} 19. h3 {[%clk 0:00:56]} 19... Bd5
{[%clk 0:01:25.4]} 20. Rfd1 {[%clk 0:00:54.5]} 20... Qa6 {[%clk 0:01:12]} 21.
Nfe5 {[%clk 0:00:47.7]} 21... Bxg2 {[%clk 0:01:09.6]} 22. Kxg2 {[%clk
0:00:49.6]} 22... Rac8 {[%clk 0:01:02.8]} 23. Nxd7 {[%clk 0:00:31.6]} 23... Rxd7
{[%clk 0:01:00.9]} 24. dxc5 {[%clk 0:00:32.4]} 24... Bxc5 {[%clk 0:00:44.8]} 25.
Qf3 {[%clk 0:00:33.3]} 25... Be7 {[%clk 0:00:21.5]} 26. Bxf6 {[%clk 0:00:23.2]}
26... Rxd1 {[%clk 0:00:20.7]} 27. Rxd1 {[%clk 0:00:25.1]} 27... Bxf6 {[%clk
0:00:21.1]} 28. Rd6 {[%clk 0:00:26.5]} 28... Qa7 {[%clk 0:00:17.8]} 29. Qd3
{[%clk 0:00:23.5]} 29... g6 {[%clk 0:00:17]} 30. e3 {[%clk 0:00:24.2]} 30... Kg7
{[%clk 0:00:17.5]} 31. h4 {[%clk 0:00:25.1]} 31... Qc5 {[%clk 0:00:09.3]} 32.
Rd7 {[%clk 0:00:23.1]} 32... Rc7 {[%clk 0:00:08.9]} 33. Rxc7 {[%clk 0:00:23.7]}
33... Qxc7 {[%clk 0:00:09.9]} 34. Qe4 {[%clk 0:00:25.2]} 34... Be7 {[%clk
0:00:05.4]} 35. Qa8 {[%clk 0:00:24.8]} 35... Qd7 {[%clk 0:00:03]} 36. Nxa5
{[%clk 0:00:21.6]} 36... Qd3 {[%clk 0:00:03.4]} 37. Qb7 {[%clk 0:00:20.6]} 37...
Bd6 {[%clk 0:00:03.2]} 38. Nc4 {[%clk 0:00:20.8]} 38... Qd1 {[%clk 0:00:02.8]}
39. Nxd6 {[%clk 0:00:20.8]} 39... Qxd6 {[%clk 0:00:03.7]} 40. a5 {[%clk
0:00:22.4]} 40... Qd3 {[%clk 0:00:02.6]} 41. a6 {[%clk 0:00:23]} 41... Qxb3
{[%clk 0:00:03.4]} 42. a7 {[%clk 0:00:24.6]} 42... Qa3 {[%clk 0:00:03.7]} 43.
a8=Q {[%clk 0:00:26.5]} 1-0

[Event "*** Titled Tuesday Blitz"]
[Site "Chess.com"]
[Date "2019.05.07"]
[Round "1"]
[White "quesfr"]
[Black "GMJimKnopf"]
[Result "1-0"]
[WhiteElo "2199"]
[BlackElo "2482"]
[TimeControl "180+2"]
[EndTime "13:08:49 PDT"]
[Termination "quesfr won on time"]

1. e4 {[%clk 0:03:01.1]} 1... c5 {[%clk 0:03:00.4]} 2. c3 {[%clk 0:03:01.7]}
2... d6 {[%clk 0:03:00.7]} 3. d4 {[%clk 0:03:01.3]} 3... Nf6 {[%clk 0:03:01.1]}
4. Bd3 {[%clk 0:03:01.2]} 4... g6 {[%clk 0:02:47.3]} 5. dxc5 {[%clk 0:03:01.7]}
5... dxc5 {[%clk 0:02:45.7]} 6. e5 {[%clk 0:03:02.8]} 6... Nd5 {[%clk
0:02:37.3]} 7. Be4 {[%clk 0:03:03.7]} 7... e6 {[%clk 0:01:55.8]} 8. c4 {[%clk
0:03:04]} 8... Ne7 {[%clk 0:01:42.2]} 9. Qxd8+ {[%clk 0:03:03.4]} 9... Kxd8
{[%clk 0:01:44.1]} 10. Be3 {[%clk 0:02:50.4]} 10... Nf5 {[%clk 0:01:38.8]} 11.
Bg5+ {[%clk 0:02:35]} 11... Be7 {[%clk 0:01:21.3]} 12. Bxe7+ {[%clk 0:02:33.2]}
12... Kxe7 {[%clk 0:01:22.4]} 13. Bxf5 {[%clk 0:02:23.3]} 13... exf5 {[%clk
0:01:06.1]} 14. Nc3 {[%clk 0:02:24]} 14... Be6 {[%clk 0:01:03.1]} 15. Nd5+
{[%clk 0:02:18.3]} 15... Bxd5 {[%clk 0:00:50.6]} 16. cxd5 {[%clk 0:02:20.2]}
16... Nd7 {[%clk 0:00:51.1]} 17. f4 {[%clk 0:02:05.3]} 17... Nb6 {[%clk
0:00:25]} 18. O-O-O {[%clk 0:02:00.2]} 18... Rad8 {[%clk 0:00:23]} 19. d6+
{[%clk 0:01:56]} 19... Ke6 {[%clk 0:00:21.7]} 20. Nf3 {[%clk 0:01:44.2]} 20...
h6 {[%clk 0:00:22.9]} 21. h4 {[%clk 0:01:19.2]} 21... Nd5 {[%clk 0:00:20.2]} 22.
g3 {[%clk 0:01:18.3]} 22... Rhg8 {[%clk 0:00:18.2]} 23. Kb1 {[%clk 0:01:11.3]}
23... b6 {[%clk 0:00:16.6]} 24. Rd2 {[%clk 0:01:08.7]} 24... Ne3 {[%clk
0:00:17.3]} 25. h5 {[%clk 0:00:52.3]} 25... g5 {[%clk 0:00:15]} 26. Re1 {[%clk
0:00:33.3]} 26... Nd5 {[%clk 0:00:13]} 27. a3 {[%clk 0:00:21.4]} 27... gxf4
{[%clk 0:00:13.7]} 28. gxf4 {[%clk 0:00:12.1]} 28... Nxf4 {[%clk 0:00:15.6]} 29.
Rf1 {[%clk 0:00:10.6]} 29... Nxh5 {[%clk 0:00:16]} 30. Nh4 {[%clk 0:00:10.7]}
30... f4 {[%clk 0:00:15.6]} 31. Nf3 {[%clk 0:00:08.2]} 31... Ng3 {[%clk
0:00:13.4]} 32. Re1 {[%clk 0:00:07.8]} 32... Nf5 {[%clk 0:00:13.5]} 33. Rh2
{[%clk 0:00:08]} 33... Rg3 {[%clk 0:00:12.6]} 34. Nd2 {[%clk 0:00:07.8]} 34...
Rdg8 {[%clk 0:00:08.7]} 35. Ne4 {[%clk 0:00:06.6]} 35... Rg1 {[%clk 0:00:07.4]}
36. Rxg1 {[%clk 0:00:06.8]} 36... Rxg1+ {[%clk 0:00:09.3]} 37. Ka2 {[%clk
0:00:08.1]} 37... Kxe5 {[%clk 0:00:10.4]} 38. d7 {[%clk 0:00:08.3]} 38... Rd1
{[%clk 0:00:11.1]} 39. Rd2 {[%clk 0:00:08.7]} 39... Rxd2 {[%clk 0:00:09.3]} 40.
Nxd2 {[%clk 0:00:09.7]} 1-0